lending/lending_fUSD_20250408
["ID","MTS","AMOUNT","RATE_DAILY","PERIOD"]
[357550975,1744135910216,-500.0,0.00057808,120]
[357550976,1744135910227,-660.04,0.00057808,120]
[357550977,1744135910237,-500.0,0.00057808,120]
[357550978,1744135910247,-554.22,0.00057808,120]
[357550979,1744135910257,-722.4,0.00057808,120]
[357550980,1744135910267,-1478.16,0.00057808,120]
[357550981,1744135910277,-799.85,0.00057808,120]
[357550982,1744135910287,-602.6,0.00057808,120]
[357550983,1744135910297,-780.29,0.00057808,120]
[357550984,1744135910307,-646.7,0.00057808,120]
[357550985,1744135910316,-613.26,0.00057808,120]
[357550986,1744135910326,-500.0,0.00057808,120]
[357550987,1744135910335,-500.0,0.00057808,120]
[357550988,1744135910345,-500.0,0.00057808,120]
[357550989,1744135910355,-1227.77,0.00057808,120]
[357550990,1744135910364,-500.0,0.00057808,120]
[357550991,1744135910374,-639.27,0.00057808,120]
[357550992,1744135910384,-1161.33,0.00057808,120]
[357550993,1744135910394,-1012.34,0.00057808,120]
[357550994,1744135910404,-500.0,0.00057808,120]
[357550995,1744135910414,-1476.66,0.00057808,120]
[357550996,1744135910423,-500.0,0.00057808,120]
[357550997,1744135910432,-518.9,0.00057808,120]
[357550998,1744135910443,-500.0,0.00057808,120]
[357550999,1744135910725,-714.16,0.00057808,120]
[357551000,1744135910736,-500.0,0.00057808,120]
[357551001,1744135910745,-440.11031068,0.00057808,120]
[357551002,1744135910755,-521.99,0.00057808,120]
[357551003,1744135910764,-707.18,0.00057808,120]
[357551004,1744135910774,-802.54,0.00057808,120]
[357551005,1744135910784,-500.0,0.00057808,120]
[357551006,1744135910793,-599.6,0.00057808,120]
[357551007,1744135910803,-704.21,0.00057808,120]
[357551008,1744135910812,-500.0,0.00057808,120]
[357551009,1744135910823,-500.0,0.00057808,120]
[357551010,1744135910832,-641.96,0.00057808,120]
[357551011,1744135910841,-500.0,0.00057808,120]
[357551012,1744135910850,-938.36,0.00057808,120]
[357551013,1744135910859,-836.32,0.00057808,120]
[357551014,1744135910868,-500.0,0.00057808,120]
[357551015,1744135910877,-500.0,0.00057808,120]
[357551016,1744135910887,-500.0,0.00057808,120]
[357551017,1744135910897,-1758.82,0.00057808,120]
[357551018,1744135910906,-1001.73,0.00057808,120]
[357551019,1744135910916,-888.6,0.00057808,120]
[357551020,1744135910925,-1712.57,0.00057808,120]
[357551021,1744135910935,-500.0,0.00057808,120]
[357551022,1744135910945,-669.22,0.00057808,120]
[357551023,1744135910955,-597.59,0.00057808,120]
[357551024,1744135910964,-500.0,0.00057808,120]
[357551025,1744135910973,-500.0,0.00057808,120]
[357551026,1744135910982,-808.98,0.00057808,120]
[357551027,1744135910992,-500.0,0.00057808,120]
[357551028,1744135911002,-878.06,0.00057808,120]
[357551029,1744135911012,-539.63,0.00057808,120]
[357551030,1744135911022,-500.0,0.00057808,120]
[357551031,1744135911032,-500.0,0.00057808,120]
[357551032,1744135911042,-500.0,0.00057808,120]
[357551033,1744135911052,-500.0,0.00057808,120]
[357551034,1744135911063,-500.0,0.00057808,120]
[357551035,1744135911073,-500.0,0.00057808,120]
[357551036,1744135911083,-990.1,0.00057808,120]
[357551037,1744135911092,-550.93,0.00057808,120]
[357551038,1744135911101,-1032.36,0.00057808,120]
[357551039,1744135911111,-1056.72,0.00057808,120]
[357551040,1744135911121,-1303.1,0.00057808,120]
[357551041,1744135911131,-500.0,0.00057808,120]
[357551042,1744135911140,-545.23,0.00057808,120]
[357551043,1744135911150,-500.0,0.00057808,120]
[357551044,1744135911159,-500.0,0.00057808,120]
[357551045,1744135911170,-500.0,0.00057808,120]
[357551046,1744135911180,-951.16,0.00057808,120]
[357551047,1744135911189,-500.0,0.00057808,120]
[357551048,1744135911200,-947.72,0.00057808,120]
[357551049,1744135911209,-808.53,0.00057808,120]
[357551050,1744135911218,-845.46,0.00057808,120]
[357551051,1744135911228,-500.0,0.00057808,120]
[357551052,1744135911238,-500.0,0.00057808,120]
[357551053,1744135911247,-500.0,0.00057808,120]
[357551054,1744135911257,-833.03,0.00057808,120]
[357551055,1744135911267,-2431.15,0.00057808,120]
[357551056,1744135911277,-1568.64,0.00057808,120]
[357551057,1744135911287,-975.29,0.00057808,120]
[357551058,1744135911296,-806.29,0.00057808,120]
[357551059,1744135911306,-500.0,0.00057808,120]
[357551060,1744135911315,-500.0,0.00057808,120]
[357551061,1744135911325,-500.0,0.00057808,120]
[357551062,1744135911335,-929.27,0.00057808,120]
[357551063,1744135911344,-1263.92,0.00057808,120]
[357551064,1744135911354,-500.0,0.00057808,120]
[357551065,1744135911364,-6744.61,0.00057808,2]
[357551066,1744135911373,-1745.31,0.00057808,120]
[357551067,1744135911383,-500.0,0.00057808,120]
[357551068,1744135911392,-784.78,0.00057808,120]
[357551069,1744135911402,-1297.19,0.00057808,120]
[357551070,1744135911411,-671.69,0.00057808,120]
[357551071,1744135911420,-844.34,0.00057808,120]
[357551072,1744135911430,-500.0,0.00057808,120]
[357551073,1744135911439,-736.0,0.00057808,120]
[357551074,1744135911449,-500.0,0.00057808,120]
[357551075,1744135911458,-500.0,0.00057808,120]
[357551076,1744135911469,-596.17,0.00057808,120]
[357551077,1744135911478,-1049.21,0.00057808,120]
[357551078,1744135911487,-878.89,0.00057808,120]
[357551079,1744135911497,-500.0,0.00057808,120]
[357551080,1744135911506,-520.04,0.00057808,120]
[357551081,1744135911515,-581.28,0.00057808,120]
[357551082,1744135911525,-1004.09,0.00057808,120]
[357551083,1744135911534,-500.0,0.00057808,120]
[357551084,1744135911544,-500.0,0.00057808,120]
[357551085,1744135911557,-500.0,0.00057808,120]
[357551086,1744135911567,-1139.43,0.00057808,120]
[357551087,1744135911578,-769.0,0.00057808,120]
[357551088,1744135911588,-500.0,0.00057808,120]
[357551089,1744135911598,-691.29,0.00057808,120]
[357551090,1744135911607,-2188.68,0.00057808,120]
[357551091,1744135911622,-500.0,0.00057808,120]
[357551092,1744135911633,-500.0,0.00057808,120]
[357551093,1744135911643,-980.44,0.00057808,120]
[357551094,1744135911653,-547.15,0.00057808,120]
[357551095,1744135911663,-591.63,0.00057808,120]
[357551096,1744135911673,-500.0,0.00057808,120]
[357551097,1744135911683,-707.17,0.00057808,120]
[357551098,1744135911694,-1356.13,0.00057808,120]
[357551099,1744135911704,-621.25,0.00057808,120]
[357551100,1744135911714,-1061.81,0.00057808,120]
[357551101,1744135911723,-671.05,0.00057808,120]
[357551102,1744135911733,-915.65,0.00057808,120]
[357551103,1744135911742,-991.48,0.00057808,120]
[357551104,1744135911752,-500.0,0.00057808,120]
[357551105,1744135911762,-500.0,0.00057808,120]
[357551106,1744135911772,-771.41,0.00057808,120]
[357551107,1744135911782,-735.03,0.00057808,120]
[357551108,1744135911792,-500.0,0.00057808,120]
[357551109,1744135911804,-1539.5,0.00057808,120]
[357551110,1744135911814,-326.47549892,0.00057808,120]
[357551111,1744135911824,-793.73,0.00057808,120]
[357551112,1744135911835,-2030.76,0.00057808,120]
[357551113,1744135911845,-645.49,0.00057808,120]
[357551114,1744135911854,-500.0,0.00057808,120]
[357551115,1744135911864,-500.0,0.00057808,120]
[357551116,1744135911874,-543.59,0.00057808,120]
[357551117,1744135911884,-1107.48,0.00057808,120]
[357551118,1744135911894,-500.0,0.00057808,120]
[357551119,1744135911904,-1122.05,0.00057808,120]
[357551120,1744135911913,-500.0,0.00057808,120]
[357551121,1744135911923,-500.0,0.00057808,8]
[357551122,1744135911933,-1784.68,0.00057808,120]
[357551123,1744135911943,-918.42,0.00057808,120]
[357551124,1744135911953,-500.0,0.00057808,120]
[357551125,1744135911962,-665.51,0.00057808,120]
[357551126,1744135911971,-578.6,0.00057808,120]
[357551127,1744135911981,-841.6,0.00057808,120]
[357551128,1744135911991,-1052.26,0.00057808,120]
[357551129,1744135912000,-236.01977723,0.00057808,120]
[357551130,1744135912009,-528.16,0.00057808,120]
[357551131,1744135912019,-768.18,0.00057808,120]
[357551132,1744135912029,-1672.07,0.00057808,118]
[357551133,1744135912039,-343.85794654,0.00057808,120]
[357551134,1744135912050,-1296.01,0.00057808,120]
[357551135,1744135912060,-1146.51,0.00057808,120]
[357551136,1744135912069,-500.0,0.00057808,120]
[357551137,1744135912079,-500.0,0.00057808,120]
[357551138,1744135912089,-500.0,0.00057808,120]
[357551139,1744135912098,-222.32382166,0.00057808,120]
[357551140,1744135912107,-803.86,0.00057808,120]
[357551141,1744135912117,-2828.98,0.00057808,120]
[357551142,1744135912126,-825.98,0.00057808,120]
[357551143,1744135912136,-500.0,0.00057808,120]
[357551144,1744135912145,-513.55,0.00057808,120]
[357551145,1744135912155,-1752.77,0.00057808,120]
[357551146,1744135912164,-500.0,0.00057808,120]
[357551147,1744135912173,-1469.03,0.00057808,120]
[357551148,1744135912183,-674.74,0.00057808,120]
[357551149,1744135912192,-734.29,0.00057808,120]
[357551150,1744135912201,-895.79,0.00057808,120]
[357551151,1744135912211,-931.13,0.00057808,120]
[357551152,1744135912221,-548.95,0.00057808,120]
[357551153,1744135912230,-500.0,0.00057808,120]
[357551154,1744135912241,-1851.47,0.00057808,120]
[357551155,1744135912250,-500.0,0.00057808,120]
[357551156,1744135912260,-500.0,0.00057808,120]
[357551157,1744135912269,-500.0,0.00057808,120]
[357551158,1744135912279,-943.92,0.00057808,120]
[357551159,1744135912289,-500.0,0.00057808,120]
[357551160,1744135912301,-2817.37,0.00057808,120]
[357551161,1744135912311,-643.01,0.00057808,120]
[357551162,1744135912320,-500.0,0.00057808,120]
[357551163,1744135912330,-535.91,0.00057808,120]
[357551164,1744135912341,-500.0,0.00057808,120]
[357551165,1744135912351,-500.0,0.00057808,120]
[357551166,1744135912362,-1220.84,0.00057808,2]
[357551167,1744135912372,-2753.64,0.00057808,100]
[357551168,1744135912382,-500.0,0.00057808,120]
[357551169,1744135912392,-599.70605216,0.00057808,120]
[357551170,1744135912402,-2064.77,0.00057808,120]
[357551171,1744135912411,-500.0,0.00057808,120]
[357551172,1744135912421,-500.0,0.00057808,120]
[357551173,1744135912431,-500.0,0.00057808,120]
[357551174,1744135912440,-1736.05,0.00057808,120]
[357551175,1744135912450,-777.99,0.00057808,120]
[357551176,1744135912460,-2563.65,0.00057808,120]
[357551177,1744135912471,-500.0,0.00057808,120]
[357551178,1744135912481,-1027.58,0.00057808,120]
[357551179,1744135912491,-751.14,0.00057808,120]
[357551180,1744135912501,-1287.88,0.00057808,120]
[357551181,1744135912512,-500.0,0.00057808,120]
[357551182,1744135912522,-646.32,0.00057808,120]
[357551183,1744135912531,-509.41,0.00057808,120]
[357551184,1744135912542,-500.0,0.00057808,120]
[357551185,1744135912553,-500.0,0.00057808,120]
[357551186,1744135912563,-500.0,0.00057808,120]
[357551187,1744135912573,-575.39,0.00057808,120]
[357551188,1744135912583,-2129.03,0.00057808,120]
[357551189,1744135912593,-1105.86,0.00057808,120]
[357551190,1744135912602,-1398.27,0.00057808,120]
[357551191,1744135912612,-500.0,0.00057808,120]
[357551192,1744135912622,-500.0,0.00057808,120]
[357551193,1744135912635,-500.0,0.00057808,120]
[357551194,1744135912645,-500.0,0.00057808,120]
[357551195,1744135912654,-500.0,0.00057808,120]
[357551196,1744135912664,-813.0,0.00057808,120]
[357551197,1744135912674,-500.0,0.00057808,120]
[357551198,1744135912684,-500.0,0.00057808,120]
[357551199,1744135912695,-1231.16,0.00057808,120]
[357551200,1744135912706,-2129.78,0.00057808,120]
[357551201,1744135912718,-1852.62,0.00057808,120]
[357551202,1744135912730,-500.0,0.00057808,120]
[357551203,1744135912741,-500.0,0.00057808,120]
[357551204,1744135912752,-817.54,0.00057808,120]
[357551205,1744135912764,-735.03,0.00057808,120]
[357551206,1744135912775,-500.0,0.00057808,120]
[357551207,1744135912785,-599.00017708,0.00057808,120]
[357551208,1744135912796,-500.0,0.00057808,120]
[357551209,1744135912812,-538.82,0.00057808,120]
[357551210,1744135912823,-500.0,0.00057808,120]
[357551211,1744135912834,-794.86,0.00057808,120]
[357551212,1744135912844,-500.0,0.00057808,120]
[357551213,1744135912854,-589.43,0.00057808,120]
[357551214,1744135912863,-500.0,0.00057808,120]
[357551215,1744135912873,-500.0,0.00057808,120]
[357551216,1744135912883,-703.81,0.00057808,120]
[357551217,1744135912893,-1762.5,0.00057808,120]
[357551218,1744135912902,-500.0,0.00057808,120]
[357551219,1744135912912,-1383.32,0.00057808,120]
[357551220,1744135912922,-1000.0,0.00058,120]
[357551221,1744135912931,-500.0,0.00058,120]
[357551222,1744135912940,-500.0,0.00058,120]
[357551223,1744135912950,-1172.69809554,0.00058,2]
[357551224,1744135912960,-1460.93,0.0005804,120]
[357551225,1744135912969,-884.11,0.0005804,120]
[357551226,1744135912978,-209.0,0.0005805,30]
[357551227,1744135912987,-202.0,0.0005805,30]
[357551228,1744135912997,-500.0,0.00058081,120]
[357551229,1744135913006,-587.08960503,0.00058081,120]
[357551230,1744135913014,-522.2,0.00058081,120]
[357551231,1744135913023,-522.2,0.00058081,120]
[357551232,1744135913032,-522.2,0.00058081,120]
[357551233,1744135913042,-698.53,0.00058081,120]
[357551234,1744135913054,-698.53,0.00058081,120]
[357551235,1744135913064,-698.53,0.00058081,120]
[357551236,1744135913073,-698.53,0.00058081,120]
[357551237,1744135913083,-698.53,0.00058081,120]
[357551238,1744135913093,-698.69140558,0.00058081,120]
[357551239,1744135913102,-500.0,0.00058082,16]
[357551240,1744135913112,-151.0,0.00058082,120]
[357551241,1744135913121,-3620.08,0.000581,60]
[357551242,1744135913131,-265.17158938,0.00058225,120]
[357551243,1744135913140,-689.11914121,0.00058225,120]
[357551244,1744135913149,-1663.12858184,0.00058225,120]
[357551245,1744135913158,-1000.0,0.00058352,15]
[357551246,1744135913167,-516.03222908,0.00058352,15]
[357551247,1744135913176,-500.0,0.00058352,5]
[357551248,1744135913185,-1000.79839461,0.00058352,15]
[357551249,1744135913194,-1000.0,0.00058352,14]
[357551250,1744135913204,-500.0,0.00058352,14]
[357551251,1744135913214,-999.0,0.00058355,120]
[357551252,1744135913223,-2000.0,0.00058472,8]
[357551253,1744135913232,-580.15,0.00058629,120]
[357551254,1744135913242,-500.0,0.00058629,120]
[357551255,1744135913253,-932.66,0.00058629,120]
[357551256,1744135913262,-613.35,0.00058629,120]
[357551257,1744135913272,-500.0,0.00058629,120]
[357551258,1744135913283,-581.16,0.00058629,120]
[357551259,1744135913292,-72207.66,0.00058629,7]
[357551260,1744135913305,-1365.37,0.00058629,120]
[357551261,1744135913314,-1716.32,0.00058629,120]
[357551262,1744135913324,-2936.12,0.00058629,120]
[357551263,1744135913334,-681.07,0.00058629,120]
[357551264,1744135913343,-500.0,0.00058629,120]
[357551265,1744135913353,-1759.78,0.00058629,120]
[357551266,1744135913362,-1127.76,0.00058629,120]
[357551267,1744135913372,-500.0,0.00058629,120]
[357551268,1744135913382,-500.0,0.00058629,120]
[357551269,1744135913391,-500.0,0.00058629,120]
[357551270,1744135913401,-9035.99,0.00058629,120]
[357551271,1744135913410,-772.33,0.00058629,120]
[357551272,1744135913420,-500.0,0.00058629,120]
[357551273,1744135913430,-500.0,0.00058629,120]
[357551274,1744135913440,-500.0,0.00058629,120]
[357551275,1744135913451,-3050.45,0.00058629,120]
[357551276,1744135913461,-726.43,0.00058629,120]
[357551277,1744135913471,-1239.1,0.00058629,120]
[357551278,1744135913481,-516.0,0.00058629,120]
[357551279,1744135913490,-1483.68,0.00058629,120]
[357551280,1744135913500,-500.0,0.00058629,120]
[357551281,1744135913511,-3034.88,0.00058629,120]
[357551282,1744135913520,-573.44,0.00058629,120]
[357551283,1744135913531,-150.0,0.00058629,120]
[357551284,1744135913540,-789.9,0.00058629,120]
[357551285,1744135913552,-500.0,0.00058629,120]
[357551286,1744135913562,-545.03,0.0005863,120]
[357551287,1744135913572,-500.0,0.0005863,120]
[357551288,1744135913581,-538.21,0.0005863,120]
[357551289,1744135913593,-500.0,0.0005863,120]
[357551290,1744135913603,-500.0,0.0005863,120]
[357551291,1744135913614,-500.0,0.0005863,120]
[357551292,1744135913626,-500.0,0.0005863,120]
[357551293,1744135913636,-500.0,0.0005863,120]
[357551294,1744135913646,-500.0,0.0005863,120]
[357551295,1744135913659,-500.0,0.0005863,120]
[357551296,1744135913668,-686.22,0.0005863,120]
[357551297,1744135913677,-500.0,0.0005863,120]
[357551298,1744135913687,-589.26,0.0005863,120]
[357551299,1744135913697,-500.0,0.0005863,120]
[357551300,1744135913707,-500.0,0.0005863,120]
[357551301,1744135913716,-500.0,0.0005863,120]
[357551302,1744135913725,-500.0,0.0005863,120]
[357551303,1744135913734,-500.0,0.0005863,120]
[357551304,1744135913744,-500.0,0.0005863,120]
[357551305,1744135913753,-500.0,0.0005863,120]
[357551306,1744135913763,-531.84,0.0005863,120]
[357551307,1744135913772,-500.0,0.0005863,120]
[357551308,1744135913781,-500.0,0.0005863,120]
[357551309,1744135913791,-500.0,0.0005863,120]
[357551310,1744135913802,-1392.68,0.0005863,120]
[357551311,1744135913811,-1013.5,0.0005863,120]
[357551312,1744135913820,-500.0,0.0005863,120]
[357551313,1744135913829,-500.0,0.0005863,120]
[357551314,1744135913839,-500.0,0.0005863,120]
[357551315,1744135913848,-500.0,0.0005863,120]
[357551316,1744135913858,-502.78,0.0005863,120]
[357551317,1744135913867,-500.0,0.0005863,120]
[357551318,1744135913877,-500.0,0.0005863,120]
[357551319,1744135913886,-500.0,0.0005863,120]
[357551320,1744135913895,-500.0,0.0005863,120]
[357551321,1744135913904,-500.0,0.0005863,120]
[357551322,1744135913914,-500.0,0.0005863,120]
[357551323,1744135913923,-1285.07,0.0005863,10]
[357551324,1744135913932,-500.0,0.0005863,120]
[357551325,1744135913941,-500.0,0.0005863,120]
[357551326,1744135913951,-729.33,0.0005863,30]
[357551327,1744135913960,-583.31,0.0005863,120]
[357551328,1744135913969,-1155.37,0.0005863,120]
[357551329,1744135913978,-500.0,0.0005863,120]
[357551330,1744135913987,-651.5,0.0005863,120]
[357551331,1744135913996,-500.0,0.0005863,120]
[357551332,1744135914006,-500.0,0.0005863,120]
[357551333,1744135914015,-829.06,0.0005863,120]
[357551334,1744135914024,-986.5,0.0005863,120]
[357551335,1744135914034,-500.0,0.0005863,120]
[357551336,1744135914043,-500.0,0.0005863,120]
[357551337,1744135914053,-462.77467766,0.0005863,120]
[357551338,1744135914063,-500.0,0.0005863,120]
[357551339,1744135914072,-500.0,0.0005863,120]
[357551340,1744135914081,-500.0,0.0005863,120]
[357551341,1744135914090,-853.97,0.0005863,120]
[357551342,1744135914099,-2000.0,0.0005863,2]
[357551343,1744135914109,-839.17,0.0005863,120]
[357551344,1744135914118,-500.0,0.0005863,120]
[357551345,1744135914127,-529.71991101,0.0005863,120]
[357551346,1744135914136,-385.4022169,0.0005863,120]
[357551347,1744135914146,-500.0,0.0005863,120]
[357551348,1744135914155,-500.0,0.0005863,120]
[357551349,1744135914164,-702.55,0.0005863,120]
[357551350,1744135914174,-500.0,0.0005863,2]
[357551351,1744135914184,-677.2,0.0005863,120]
[357551352,1744135914194,-790.51,0.0005863,120]
[357551353,1744135914203,-500.0,0.0005863,120]
[357551354,1744135914213,-500.0,0.0005863,120]
[357551355,1744135914223,-717.93,0.0005863,120]
[357551356,1744135914233,-295.98144094,0.0005863,120]
[357551357,1744135914242,-500.0,0.0005863,2]
[357551358,1744135914252,-1019.54,0.0005863,120]
[357551359,1744135914262,-500.0,0.0005863,120]
[357551360,1744135914271,-571.65,0.0005863,120]
[357551361,1744135914281,-301.86090984,0.0005863,120]
[357551362,1744135914291,-500.0,0.0005863,120]
[357551363,1744135914302,-567.81,0.0005863,120]
[357551364,1744135914312,-500.0,0.0005863,120]
[357551365,1744135914322,-954.85,0.0005863,120]
[357551366,1744135914331,-500.0,0.0005863,120]
[357551367,1744135914341,-1425.74,0.0005863,30]
[357551368,1744135914351,-1998.88,0.0005863,120]
[357551369,1744135914360,-1354.7,0.0005863,120]
[357551370,1744135914370,-500.0,0.0005863,120]
[357551371,1744135914379,-500.0,0.0005863,120]
[357551372,1744135914390,-500.0,0.0005863,120]
[357551373,1744135914399,-500.0,0.0005863,120]
[357551374,1744135914409,-1046.86,0.0005863,120]
[357551375,1744135914419,-500.0,0.0005863,120]
[357551376,1744135914428,-537.7,0.0005863,120]
[357551377,1744135914438,-524.83,0.0005863,120]
[357551378,1744135914448,-500.0,0.0005863,120]
[357551379,1744135914457,-812.56,0.0005863,120]
[357551380,1744135914467,-1644.68,0.0005863,120]
[357551381,1744135914477,-884.4,0.0005863,120]
[357551382,1744135914487,-500.0,0.0005863,120]
[357551383,1744135914496,-727.96,0.0005863,120]
[357551384,1744135914506,-500.0,0.0005863,120]
[357551385,1744135914515,-1273.1,0.0005863,120]
[357551386,1744135914525,-500.0,0.0005863,120]
[357551387,1744135914534,-500.0,0.0005863,120]
[357551388,1744135914543,-1048.09,0.0005863,120]
[357551389,1744135914554,-500.0,0.0005863,120]
[357551390,1744135914564,-965.74,0.0005863,120]
[357551391,1744135914573,-500.0,0.0005863,120]
[357551392,1744135914583,-554.97,0.0005863,120]
[357551393,1744135914592,-500.0,0.0005863,120]
[357551394,1744135914602,-596.09402246,0.0005863,120]
[357551395,1744135914612,-794.37,0.0005863,120]
[357551396,1744135914621,-500.0,0.0005863,120]
[357551397,1744135914633,-500.0,0.0005863,120]
[357551398,1744135914643,-635.52,0.0005863,120]
[357551399,1744135914652,-530.29,0.0005863,120]
[357551400,1744135914662,-500.0,0.0005863,120]
[357551401,1744135914672,-1026.05,0.0005863,120]
[357551402,1744135914682,-500.0,0.0005863,120]
[357551403,1744135914691,-500.0,0.0005863,120]
[357551404,1744135914704,-500.0,0.0005863,120]
[357551405,1744135914714,-541.89,0.0005863,120]
[357551406,1744135914724,-500.0,0.0005863,120]
[357551407,1744135914733,-500.0,0.0005863,120]
[357551408,1744135914743,-500.0,0.0005863,120]
[357551409,1744135914752,-913.6,0.0005863,120]
[357551410,1744135914762,-581.87,0.0005863,120]
[357551411,1744135914961,-211.71494629,0.0005863,120]
[357551412,1744135914993,-500.0,0.0005863,120]
[357551413,1744135915003,-640.64,0.0005863,30]
[357551414,1744135915013,-500.0,0.0005863,120]
[357551415,1744135915023,-541.35,0.0005863,120]
[357551416,1744135915032,-500.0,0.0005863,120]
[357551417,1744135915041,-500.0,0.0005863,120]
[357551418,1744135915051,-500.0,0.0005863,120]
[357551419,1744135915060,-985.93,0.0005863,120]
[357551420,1744135915070,-531.64,0.0005863,120]
[357551421,1744135915079,-500.0,0.0005863,120]
[357551422,1744135915088,-1206.08,0.0005863,120]
[357551423,1744135915097,-500.0,0.0005863,120]
[357551424,1744135915107,-500.0,0.0005863,120]
[357551425,1744135915116,-500.0,0.0005863,120]
[357551426,1744135915126,-500.0,0.0005863,120]
[357551427,1744135915136,-706.13,0.0005863,120]
[357551428,1744135915145,-500.0,0.0005863,120]
[357551429,1744135915155,-500.0,0.0005863,120]
[357551430,1744135915164,-500.0,0.0005863,120]
[357551431,1744135915174,-1079.35,0.0005863,120]
[357551432,1744135915183,-500.0,0.0005863,120]
[357551433,1744135915192,-500.0,0.0005863,120]
[357551434,1744135915202,-500.0,0.0005863,120]
[357551435,1744135915211,-726.46,0.0005863,120]
[357551436,1744135915220,-615.19,0.0005863,120]
[357551437,1744135915229,-360.27426223,0.0005863,120]
[357551438,1744135915239,-1342.18,0.0005863,120]
[357551439,1744135915248,-687.95,0.0005863,120]
[357551440,1744135915257,-646.6,0.0005863,120]
[357551441,1744135915266,-547.83,0.0005863,120]
[357551442,1744135915276,-500.0,0.0005863,120]
[357551443,1744135915286,-1247.459857,0.0005863,120]
[357551444,1744135915296,-513.92,0.0005863,120]
[357551445,1744135915308,-396.28,0.0005863,120]
[357551446,1744135915317,-500.0,0.0005863,120]
[357551447,1744135915327,-500.0,0.0005863,7]
[357551448,1744135915336,-500.0,0.0005863,120]
[357551449,1744135915345,-3011.86,0.0005863,120]
[357551450,1744135915356,-711.83,0.0005863,120]
[357551451,1744135915366,-500.0,0.0005863,120]
[357551452,1744135915376,-500.0,0.0005863,120]
[357551453,1744135915386,-500.0,0.0005863,120]
[357551454,1744135915396,-853.97,0.0005863,120]
[357551455,1744135915406,-500.0,0.0005863,120]
[357551456,1744135915416,-588.885889,0.0005863,120]
[357551457,1744135915426,-500.0,0.0005863,120]
[357551458,1744135915435,-627.5,0.0005863,120]
[357551459,1744135915445,-500.0,0.0005863,120]
[357551460,1744135915455,-500.0,0.0005863,120]
[357551461,1744135915465,-595.62,0.0005863,120]
[357551462,1744135915474,-500.0,0.0005863,120]
[357551463,1744135915484,-631.1,0.0005863,120]
[357551464,1744135915494,-500.0,0.0005863,120]
[357551465,1744135915503,-500.0,0.0005863,120]
[357551466,1744135915513,-500.0,0.0005863,120]
[357551467,1744135915523,-500.0,0.0005863,120]
[357551468,1744135915533,-500.0,0.0005863,120]
[357551469,1744135915542,-935.92,0.0005863,120]
[357551470,1744135915554,-500.0,0.0005863,120]
[357551471,1744135915564,-500.0,0.0005863,120]
[357551472,1744135915573,-500.0,0.0005863,120]
[357551473,1744135915583,-500.0,0.0005863,120]
[357551474,1744135915593,-500.0,0.0005863,120]